bitfinex/quotes_ETHUSD_20250425
["timestamp","ask_amount","ask_price","bid_price","bid_amount"]
[1745594476690,16.567,1812.9,1811.9,0.86628039]
[1745594476922,7.026,1813.1,1812.2,0.8072]
[1745594477232,3.0,1813.0,1812.2,0.8072]
[1745594477395,3.0,1813.0,1812.2,0.86236744]
[1745594477594,0.41269932,1813.1,1812.2,6.13516744]
[1745594477841,7.025,1813.3,1812.4,0.8267]
[1745594477998,10.13934525,1813.2,1812.4,0.8267]
[1745594479025,10.54790474,1813.2,1812.4,0.8267]
[1745594479791,3.0,1812.8,1812.4,0.8267]
[1745594480041,8.15109569,1812.8,1812.4,0.8267]
[1745594480203,5.51667315,1812.7,1812.4,0.8267]
[1745594480533,6.98851257,1812.6,1812.1,0.8045]
[1745594481291,7.41139586,1812.6,1812.1,0.8045]
[1745594481696,7.41139586,1812.6,1811.8,0.7844]
[1745594482206,3.0,1812.5,1811.8,0.7844]
[1745594485039,0.97455061,1812.6,1811.8,0.7844]
[1745594485200,0.42288329,1812.6,1811.8,0.7844]
[1745594485538,18.17132139,1813.0,1811.6,0.05518405]
[1745594485539,0.20386383,1813.5,1812.6,0.803]
[1745594485751,0.8014,1815.0,1813.6,0.55]
[1745594485928,0.00210722,1815.3,1814.8,0.86316568]
[1745594486101,0.00210722,1815.3,1814.9,3.76]
[1745594486305,0.00210722,1815.3,1814.9,1.86600109]
[1745594486607,0.00210722,1815.3,1815.0,2.54193267]
[1745594486810,0.00210722,1815.3,1814.9,1.86600109]
[1745594487040,0.00210722,1815.3,1814.9,8.91700109]
[1745594487333,0.00210722,1815.3,1815.0,0.05508819]
[1745594487533,0.00210722,1815.3,1814.9,8.91700109]
[1745594487732,0.00210722,1815.3,1815.0,0.05508439]
[1745594488136,0.00210722,1815.3,1814.9,7.86608329]
[1745594488638,0.00210722,1815.3,1814.9,0.76]
[1745594489633,0.00210722,1815.3,1814.8,0.86316568]
[1745594491068,0.00210722,1815.3,1815.0,0.7757]
[1745594492745,3.0,1816.1,1815.0,0.7757]
[1745594492746,0.4101566,1816.7,1815.6,0.55]
[1745594493065,0.8322,1818.9,1817.0,0.2]
[1745594493204,19.198,1819.6,1817.0,0.2]
[1745594493205,0.8322,1819.6,1818.0,3.0]
[1745594493409,5.49616675,1819.5,1817.9,6.43684525]
[1745594493603,0.8322,1819.6,1818.2,6.43684525]
[1745594493817,7.6,1819.4,1818.2,0.8042]
[1745594494019,6.43684525,1819.4,1818.2,0.8042]
[1745594494347,0.8322,1819.6,1818.3,6.49184478]
[1745594494531,7.6,1819.3,1818.2,0.8042]
[1745594494717,0.7658,1818.8,1817.8,0.754]
[1745594494926,14.03684525,1818.7,1817.8,0.754]
[1745594495167,0.7658,1818.8,1817.8,0.754]
[1745594495329,6.43684525,1818.7,1817.8,0.754]
[1745594495654,6.43684525,1818.7,1817.4,0.8129]
[1745594495857,6.43684525,1818.4,1817.4,0.8129]
[1745594496058,3.0,1818.2,1817.1,0.8129]
[1745594496361,9.43684525,1817.8,1817.1,0.8129]
[1745594496512,17.03084525,1817.8,1816.7,0.7904]
[1745594496717,10.594,1817.8,1816.7,0.7904]
[1745594496962,3.0,1817.6,1816.7,0.7904]
[1745594497160,0.3,1817.5,1816.7,0.7904]
[1745594497961,8.50293369,1817.3,1816.3,0.7737]
[1745594498266,7.594,1817.2,1816.4,0.05505062]
[1745594498417,7.594,1817.2,1816.3,0.7737]
[1745594498730,10.19624525,1817.1,1816.3,0.7737]
[1745594498932,14.94103747,1816.8,1815.7,0.7862]
[1745594499135,6.43684525,1816.5,1815.7,0.7862]
[1745594499347,10.592,1816.4,1815.7,0.7862]
[1745594500245,0.7793,1817.2,1815.7,0.7862]
[1745594500441,14.94085447,1816.9,1815.7,0.7862]
[1745594500630,9.43684525,1816.9,1815.7,0.7862]
[1745594500835,5.50440042,1816.8,1815.7,0.7862]
[1745594501035,5.50481112,1816.6,1815.7,0.7862]
[1745594501258,6.43684525,1816.6,1815.7,0.7862]
[1745594501576,0.64368453,1816.5,1815.7,0.7862]
[1745594501882,9.43684525,1816.9,1815.8,0.05506089]
[1745594502051,5.50585974,1816.3,1815.7,0.7862]
[1745594502246,7.591,1816.2,1814.9,0.7845]
[1745594502446,7.591,1816.2,1815.0,0.05508244]
[1745594502447,3.7591,1816.1,1815.0,0.05508244]
[1745594502634,3.7591,1816.1,1815.0,0.05507606]
[1745594502837,7.591,1816.2,1815.0,0.05507564]
[1745594503076,7.591,1816.2,1814.9,0.7845]
[1745594503241,3.0,1816.1,1814.9,0.7845]
[1745594503635,3.0,1816.1,1815.0,0.05508003]
[1745594503841,3.0,1816.1,1815.0,0.05508002]
[1745594504041,3.0,1815.9,1815.0,0.05508002]
[1745594504348,7.592,1816.7,1815.2,0.55]
[1745594504565,9.43684525,1816.6,1815.5,0.7845]
[1745594505045,13.09714709,1816.5,1815.5,0.7845]
[1745594505245,7.592,1816.5,1815.5,0.7845]
[1745594505480,6.43684525,1816.3,1815.5,0.7845]
[1745594505975,3.0,1816.2,1815.5,0.7845]
[1745594506277,0.7592,1816.4,1815.5,0.7845]
[1745594506455,3.0,1816.4,1815.5,0.7845]
[1745594506775,7.592,1816.5,1815.5,0.7845]
[1745594507345,6.43684525,1816.4,1815.5,0.7845]
[1745594507947,3.0,1816.3,1815.5,0.7845]
[1745594510152,3.0,1816.4,1815.5,0.7845]
[1745594510351,4.0592,1816.4,1815.5,0.7845]
[1745594510557,8.6512,1816.4,1815.5,0.7845]
[1745594512051,1.7764189,1817.1,1815.1,3.605073]
[1745594512052,0.4177189,1817.1,1815.7,0.7912]
[1745594512260,6.43684525,1816.8,1815.7,0.7912]
[1745594512473,3.0,1816.4,1815.7,0.7912]
[1745594512686,7.592,1816.3,1815.7,0.7912]
[1745594512888,0.7592,1816.2,1815.7,0.7912]
[1745594513863,10.19604525,1816.2,1815.2,0.813]
[1745594514257,3.0,1816.1,1815.2,0.813]
[1745594514489,6.43684525,1815.7,1815.2,0.813]
[1745594514999,14.02784525,1815.7,1815.2,0.813]
[1745594515201,1.40278453,1815.6,1815.2,0.813]
[1745594515572,1.40278453,1815.6,1814.3,7.591]
[1745594515573,9.91073066,1815.6,1814.6,0.7575]
[1745594515773,10.24964525,1815.4,1814.6,0.7575]
[1745594516074,3.8128,1816.1,1814.6,7.2542263]
[1745594516292,3.8128,1816.1,1814.8,0.7575]
[1745594516293,9.31917714,1816.1,1814.8,0.7575]
[1745594516587,3.8128,1816.1,1814.8,0.7575]
[1745594516792,9.31912113,1816.1,1814.8,0.7575]
[1745594517104,3.8128,1816.1,1814.9,0.05508604]
[1745594517316,3.0,1815.8,1814.8,6.8375]
[1745594517517,3.0,1815.8,1814.9,0.73884515]
[1745594518013,7.592,1815.9,1814.9,0.73883937]
[1745594518319,17.2812,1816.2,1815.1,0.7581]
[1745594518473,24.8732,1816.2,1815.2,0.05507721]
[1745594518679,24.8732,1816.2,1815.2,0.68931772]
[1745594519725,24.8732,1816.2,1815.1,6.8381]
[1745594519909,3.0,1816.1,1815.1,6.8381]
[1745594520309,24.8732,1816.2,1815.1,6.8381]
[1745594520514,24.114,1816.2,1815.3,0.55]
[1745594520719,7.592,1816.9,1815.7,0.55]
[1745594521019,7.592,1817.4,1816.1,0.55]
[1745594521173,13.09454601,1817.4,1816.2,0.7826]
[1745594521378,1.3094546,1817.3,1816.2,0.7826]
[1745594521632,6.81214813,1817.3,1816.2,0.7826]
[1745594521782,6.43684525,1817.2,1816.2,0.7826]
[1745594522307,3.0,1817.1,1816.2,0.7826]
[1745594522915,1.3094546,1817.3,1816.2,0.7826]
[1745594523226,4.3094546,1817.3,1816.2,0.7826]
[1745594523428,0.43094546,1817.2,1816.2,0.7826]
[1745594523737,0.43094546,1817.2,1816.2,1.18998782]
[1745594524017,7.592,1817.4,1816.3,0.8054]
[1745594524316,7.464,1817.3,1816.3,0.8054]
[1745594524516,7.464,1817.3,1816.4,0.05504504]
[1745594524719,7.464,1817.3,1816.3,0.8054]
[1745594524950,0.7464,1817.2,1816.3,0.8054]
[1745594525254,3.7464,1817.2,1816.3,0.8054]
[1745594525753,5.50338509,1817.1,1816.3,0.8054]
[1745594525914,3.0,1817.1,1816.3,0.8054]
[1745594526112,3.0,1817.2,1816.4,0.05504694]
[1745594526456,3.0,1817.2,1816.3,0.8054]
[1745594526751,7.464,1817.3,1816.3,0.8054]
[1745594526954,7.463,1817.3,1816.3,0.8054]
[1745594527115,8.2094,1817.3,1816.3,0.8054]
[1745594527911,5.50327444,1817.1,1816.3,0.8054]
[1745594528111,6.43684525,1817.1,1816.0,0.7751]
[1745594528423,3.0,1816.6,1816.0,0.7751]
[1745594528663,5.50524109,1816.5,1816.0,0.7751]
[1745594528811,5.50581283,1816.3,1815.1,0.7751]
[1745594529016,5.50707469,1815.9,1815.1,0.7751]
[1745594529242,3.0,1816.1,1815.1,0.7751]
[1745594529243,3.0,1815.8,1815.1,0.7751]
[1745594529412,7.462,1816.0,1815.2,0.05508914]
[1745594529623,7.462,1816.0,1815.1,0.83017972]
[1745594530047,7.462,1816.0,1815.1,0.7751]
[1745594530620,3.7462,1815.9,1815.1,0.7751]
[1745594530813,9.25311239,1815.9,1815.1,0.7751]
[1745594531028,5.50831854,1815.5,1815.1,0.7751]
[1745594531226,8.91019489,1815.7,1815.1,0.7751]
[1745594531453,3.40265546,1815.7,1814.4,0.7837]
[1745594531661,3.34026555,1815.6,1814.4,0.83879716]
[1745594531841,7.20154525,1815.8,1814.4,0.83879716]
[1745594532041,3.0,1815.7,1814.4,0.83879716]
[1745594532223,3.0,1815.6,1814.4,0.8388004]
[1745594532422,5.91581418,1815.7,1814.4,0.8388004]
[1745594532423,8.91580259,1815.7,1814.4,0.8388004]
[1745594532625,5.50800376,1815.6,1814.4,0.7837]
[1745594532931,3.0,1815.3,1814.4,0.7837]
[1745594533140,7.463,1815.3,1814.4,0.7837]
[1745594533314,7.463,1815.3,1814.6,0.7837]
[1745594535726,3.0,1815.6,1814.8,0.7829]
[1745594536427,7.464,1815.7,1814.8,0.7829]
[1745594536852,7.464,1815.7,1814.8,0.83798919]
[1745594537059,16.519,1815.9,1814.9,0.7643]
[1745594537436,18.9174,1815.9,1814.9,0.7643]
[1745594538089,3.0,1815.8,1814.9,0.7643]
[1745594538298,0.7895,1815.7,1813.9,0.2]
[1745594538433,6.43684525,1814.1,1813.6,0.7771]
[1745594538636,5.51326809,1813.9,1813.6,0.7771]
[1745594538865,8.513591,1813.7,1813.6,0.7771]
[1745594539390,3.0,1813.7,1812.6,0.7839]
[1745594539552,3.0,1813.7,1812.6,0.83904832]
[1745594539756,3.0,1813.7,1812.7,0.8061]
[1745594539953,6.84581295,1813.7,1812.9,0.8061]
[1745594540279,6.43684525,1813.4,1812.9,0.8061]
[1745594540456,13.90484525,1813.4,1812.9,0.8061]
[1745594540853,6.43684525,1813.1,1812.4,0.8003]
[1745594541191,3.0,1813.0,1812.4,0.8003]
[1745594541688,6.43684525,1812.8,1812.4,0.8003]
[1745594541852,13.90484525,1812.8,1812.4,0.8003]
[1745594543069,3.0,1812.7,1811.6,0.7925]
[1745594543268,6.43684525,1812.5,1811.6,0.7925]
[1745594543480,0.3,1812.6,1811.6,0.7925]
[1745594543481,6.43684525,1812.2,1811.6,0.7925]
[1745594543652,13.90784525,1812.2,1811.6,0.7925]
[1745594543886,3.0,1812.4,1811.6,0.7925]
[1745594544092,6.43684525,1812.8,1811.8,0.7749]
[1745594544287,15.29832978,1813.3,1812.0,0.7749]
[1745594544518,1.52983298,1813.2,1812.2,0.7749]
[1745594545020,13.90784525,1813.3,1812.3,0.05517019]
[1745594545328,7.471,1813.3,1812.4,0.757]
[1745594545479,7.471,1813.3,1812.5,0.05515955]
[1745594545679,7.471,1813.3,1812.6,0.757]
[1745594546294,16.537,1813.7,1812.8,0.8103]
[1745594548385,3.0,1813.7,1813.0,0.7849]
[1745594551241,8.86398453,1813.8,1813.0,0.7849]
[1745594552218,1.39098453,1813.8,1813.0,0.7849]
[1745594552421,7.474,1814.3,1813.2,7.23654525]
[1745594552625,5.51027904,1814.8,1813.6,0.7997]
[1745594552626,12.98428031,1814.8,1813.6,0.7997]
[1745594552832,12.98427571,1814.8,1813.6,0.7997]
[1745594553011,3.0,1814.7,1813.6,0.7997]
[1745594553187,0.3,1814.6,1813.6,0.7997]
[1745594553539,11.94632423,1815.1,1813.5,6.49197248]
[1745594553540,0.40648298,1815.0,1813.9,0.7925]
[1745594553702,24.017,1815.2,1814.0,0.7925]
[1745594553897,10.474,1815.1,1814.0,0.7925]
[1745594554118,7.474,1815.1,1814.0,0.7925]
[1745594554285,3.0,1815.0,1814.0,0.7925]
[1745594554483,1.0474,1815.0,1814.0,0.7925]
[1745594555099,3.41314189,1815.1,1814.0,0.7925]
[1745594555298,0.41314189,1815.1,1814.0,0.7925]
[1745594555499,5.50937888,1815.1,1814.0,0.7925]
[1745594555698,3.0,1815.0,1814.0,0.7925]
[1745594555939,8.50979675,1815.0,1814.0,0.7925]
[1745594556138,0.85097967,1814.9,1814.0,0.7925]
[1745594556623,3.0,1815.1,1814.0,0.7925]
[1745594556801,8.50944027,1815.1,1814.0,0.7925]
[1745594557235,23.898,1815.2,1814.1,6.49196609]
[1745594557434,23.898,1815.2,1814.3,0.8014]
[1745594557745,23.898,1815.2,1814.3,0.8565111]
[1745594557909,2.3898,1815.1,1814.3,0.8014]
[1745594558542,5.3898,1815.1,1814.3,0.8014]
[1745594559043,10.89936637,1815.1,1814.3,0.8014]
[1745594559337,5.3898,1815.1,1814.3,0.8014]
[1745594559521,12.7428,1815.1,1814.3,0.8014]
[1745594559835,1.27428,1815.0,1814.3,0.8014]
[1745594560011,9.7428,1815.1,1814.3,0.8014]
[1745594560634,5.3898,1815.1,1814.3,0.8014]
[1745594563935,7.353,1816.5,1815.4,0.7666]
[1745594564512,6.26089026,1816.6,1815.4,0.7666]
[1745594564718,7.351,1816.5,1815.4,0.82167376]
[1745594564912,5.84940493,1816.6,1815.7,0.791]
[1745594565217,5.84940493,1816.6,1816.0,0.791]
[1745594565635,3.0,1816.9,1816.0,0.791]
[1745594565951,0.3,1816.8,1816.0,0.791]
[1745594566608,3.0,1816.9,1816.0,0.791]
[1745594566807,5.50433659,1816.8,1816.0,0.791]
[1745594567403,3.0,1816.6,1816.0,0.791]
[1745594567832,7.349,1816.7,1816.0,0.791]
[1745594568037,0.41797289,1817.1,1816.0,0.791]
[1745594568239,0.756,1817.2,1816.0,0.84605495]
[1745594568418,0.756,1817.2,1816.0,0.791]
[1745594568623,0.756,1817.2,1816.0,1.51378453]
[1745594568624,3.756,1817.2,1816.0,1.51378453]
[1745594568821,5.50328648,1817.1,1816.0,1.51378453]
[1745594569020,9.25921294,1817.2,1816.0,1.51378453]
[1745594569021,0.756,1817.2,1816.0,0.791]
[1745594569251,3.0,1816.9,1816.0,0.791]
[1745594570113,3.0,1816.8,1816.0,0.791]
[1745594571051,8.50437828,1816.8,1816.0,0.791]
[1745594571344,8.50432328,1816.8,1816.0,0.791]
[1745594571552,6.3549774,1816.7,1816.0,0.791]
[1745594571754,8.50522962,1816.5,1816.0,0.791]
[1745594571936,8.5052571,1816.5,1816.0,0.791]
[1745594572246,5.50618392,1816.2,1815.1,6.8542]
[1745594572416,3.0,1816.0,1815.1,6.8542]
[1745594572621,3.0,1815.9,1815.2,0.68542]
[1745594572815,3.0,1815.9,1815.1,0.7742]
[1745594573011,3.0,1815.7,1815.1,0.7742]
[1745594573216,3.0,1815.6,1815.1,0.7742]
[1745594573415,3.0,1815.7,1814.8,0.8076]
[1745594573657,5.50863269,1815.4,1814.8,0.8076]
[1745594573860,3.0,1815.3,1814.8,0.8076]
[1745594576158,7.107,1815.4,1814.8,0.8076]
[1745594576360,3.0,1815.7,1814.8,0.8076]
[1745594576936,10.108,1815.8,1814.8,0.8076]
[1745594577866,7.108,1815.8,1814.9,0.05509663]
[1745594578065,7.108,1815.8,1815.0,0.7969]
[1745594578267,7.108,1815.8,1814.9,0.7969]
[1745594578419,0.41041489,1815.9,1814.9,0.7969]
[1745594578773,3.0,1815.9,1814.9,0.7969]
[1745594578937,7.108,1816.0,1814.9,0.7969]
[1745594579335,3.0,1815.6,1814.9,0.7969]
[1745594579666,13.54484525,1816.0,1814.9,0.7969]
[1745594579868,0.40998231,1816.0,1814.9,0.7969]
[1745594580159,7.108,1816.1,1814.9,0.7969]
[1745594580377,7.108,1816.1,1814.8,13.188]
[1745594580378,7.108,1816.1,1815.0,6.08]
[1745594580539,7.108,1816.1,1815.1,0.8004]
[1745594581259,7.51946925,1816.1,1815.1,0.8004]
[1745594581636,7.108,1816.1,1815.1,0.8004]
[1745594582037,16.525,1816.5,1815.4,0.8004]
[1745594582249,7.95843233,1816.7,1815.5,0.85546651]
[1745594582563,7.108,1816.8,1815.7,0.8004]
[1745594582755,7.108,1816.8,1815.7,0.8554603]
[1745594582936,7.108,1816.8,1815.8,0.8004]
[1745594583138,16.526,1817.2,1816.0,0.8004]
[1745594583468,16.526,1817.2,1816.2,0.8004]
[1745594583637,1.6526,1817.1,1816.2,0.8004]
[1745594584566,8.7606,1817.1,1816.2,0.8004]
[1745594584723,3.0,1817.0,1816.2,0.8004]
[1745594584933,3.41986319,1817.0,1816.2,0.8004]
[1745594585456,8.7606,1817.1,1816.2,0.8004]
[1745594586045,8.7606,1817.1,1816.2,0.85545121]
[1745594586267,8.7606,1817.1,1816.2,0.8004]
[1745594586453,7.108,1817.1,1816.2,0.8004]
[1745594587453,7.52988712,1817.1,1816.2,0.8004]
[1745594588264,7.108,1817.1,1816.2,0.8004]
[1745594589456,7.108,1817.1,1816.2,6.08]
[1745594589661,3.40295413,1817.3,1816.3,0.7992]
[1745594589986,3.74324954,1817.3,1816.3,0.7992]
[1745594590173,6.871,1817.2,1816.3,0.7992]
[1745594591187,3.0,1817.2,1816.3,0.7992]
[1745594592651,9.87,1817.2,1816.3,0.7992]
[1745594592853,15.37311349,1817.2,1816.3,0.7992]
[1745594593091,5.50398173,1816.9,1816.3,0.7992]
[1745594593259,3.0,1816.9,1816.3,0.7992]
[1745594594957,5.801,1816.8,1816.3,0.7992]
[1745594595156,5.50453645,1816.7,1816.3,0.7992]
[1745594595356,13.30684525,1816.7,1816.0,0.7975]
[1745594595552,6.87,1816.7,1816.0,0.7975]
[1745594595751,6.87,1816.7,1816.0,0.85256751]
[1745594595966,8.40731135,1817.1,1816.0,0.7975]
[1745594596167,6.0,1817.2,1816.0,0.7975]
[1745594596168,0.40295413,1817.3,1816.2,0.7975]
[1745594596397,6.87,1817.5,1816.4,0.7759]
[1745594596600,0.687,1817.4,1816.4,0.7759]
[1745594596802,6.87,1817.6,1816.4,0.7759]
[1745594597277,13.47131413,1817.8,1816.5,0.83984191]
[1745594597499,6.869,1817.6,1816.5,0.83984191]
[1745594597703,6.869,1817.6,1816.6,0.7514]
[1745594598010,3.0,1817.5,1816.6,7.6204]
[1745594598172,0.3,1817.4,1816.6,8.38244]
[1745594598374,7.29141772,1817.6,1816.7,0.7979]
[1745594598712,7.6747,1818.1,1816.8,0.7979]
[1745594598916,3.0,1818.0,1816.8,0.85292828]
[1745594599078,6.869,1818.1,1816.9,0.7926]
[1745594599413,28.45170179,1818.6,1817.1,0.7926]
[1745594599414,3.0,1818.2,1817.1,0.7926]
[1745594599616,0.41795818,1818.4,1817.5,0.7553]
[1745594599924,2.11540424,1819.0,1817.7,6.43684525]
[1745594600220,3.0,1818.9,1817.9,0.7553]
[1745594601278,0.40697449,1818.7,1817.9,7.6233]
[1745594601472,0.40697449,1818.7,1817.9,0.7553]
[1745594601883,3.0,1818.9,1817.9,0.7553]
[1745594602432,6.869,1819.0,1817.9,0.7553]
[1745594602577,0.35818318,1819.2,1818.0,0.55]
[1745594602918,0.35818318,1819.2,1818.4,3.0]
[1745594603078,0.35818318,1819.2,1818.6,0.7591]
[1745594603279,0.35818318,1819.2,1818.6,7.6251]
[1745594603945,0.35818318,1819.2,1818.6,0.55]
[1745594604224,0.5,1820.1,1818.8,0.823]
[1745594604437,1.650678,1822.4,1820.1,5.49420361]
[1745594604600,12.42998547,1823.2,1820.6,0.55]
[1745594604782,11.74400984,1822.8,1821.1,0.55]
[1745594604982,6.43684525,1822.7,1821.2,2.42867036]
[1745594605184,11.33322205,1822.8,1821.3,0.05488309]
[1745594605428,11.33322205,1822.8,1821.4,0.4752]
[1745594605586,6.43684525,1822.5,1821.4,0.4752]
[1745594605787,13.57684525,1822.3,1820.5,3.0]
[1745594605988,9.27791276,1822.1,1820.6,0.3]
[1745594606188,7.14,1822.1,1820.5,3.0]
[1745594606436,0.97661012,1822.0,1820.8,3.0]
[1745594606741,0.11079096,1822.0,1821.4,0.55]
[1745594607039,3.0,1821.8,1820.3,6.8581037]
[1745594607244,3.4101566,1822.2,1820.6,6.43684525]
[1745594607551,0.4101566,1822.2,1822.1,0.55]
[1745594607707,0.4101566,1822.2,1821.8,7.375]
[1745594607909,0.4101566,1822.2,1821.3,7.619]
[1745594608156,0.4101566,1822.2,1820.7,0.64368453]
[1745594608157,3.0,1821.9,1820.7,7.619]
[1745594608301,0.4101566,1822.2,1820.7,6.43684525]
[1745594608499,0.4101566,1822.2,1820.8,8.31759267]
[1745594608701,6.43684525,1822.0,1820.2,6.98626561]
[1745594609005,0.81624496,1822.2,1819.7,16.496]
[1745594609006,5.49174407,1821.0,1819.7,16.496]
[1745594609206,14.92725445,1821.4,1819.4,7.615]
[1745594609207,6.43684525,1820.8,1819.4,7.615]
[1745594609436,7.615,1820.9,1819.5,0.05494289]
[1745594609746,3.0,1820.5,1819.2,7.615]
[1745594610037,3.0,1820.9,1819.3,0.05494718]
[1745594610214,0.3,1820.8,1819.4,0.05493199]
[1745594610552,0.3,1820.8,1819.1,0.40237828]
[1745594610553,7.615,1820.7,1819.1,0.40237828]
[1745594610700,7.615,1820.7,1819.4,0.05493523]
[1745594610900,7.615,1820.7,1819.2,0.05493291]
[1745594611140,7.615,1820.7,1819.2,6.43684525]
[1745594611311,0.7615,1820.6,1819.2,0.64368453]
[1745594611531,3.0,1820.7,1819.3,0.05494501]
[1745594611921,3.0,1820.5,1819.1,0.05494253]
[1745594612155,7.615,1820.4,1819.1,0.05494253]
[1745594612366,3.0,1820.3,1819.1,0.05494253]
[1745594612547,7.615,1820.4,1819.1,0.05494253]
[1745594612731,6.43684525,1820.0,1818.3,7.614]
[1745594612930,6.43684525,1820.0,1818.4,0.05496228]
[1745594613163,3.0,1819.9,1818.4,0.05496228]
[1745594613370,6.43684525,1820.0,1818.4,0.05496228]
[1745594613655,0.64368453,1819.9,1818.4,0.86407727]
[1745594613959,3.0,1820.1,1818.5,6.43684525]
[1745594614141,3.0,1820.1,1818.6,0.054953]
[1745594614323,9.43684525,1820.1,1818.5,0.05496145]
[1745594614524,6.43684525,1819.8,1818.4,0.80911499]
[1745594615192,6.43684525,1820.0,1818.5,0.05496721]
[1745594615337,0.7615,1820.3,1818.5,6.49181246]
[1745594615657,6.43684525,1820.1,1818.6,4.19918125]
[1745594615830,6.43684525,1819.8,1818.6,0.64918125]
[1745594616022,7.615,1819.7,1818.5,0.05497118]
[1745594616222,7.615,1819.7,1818.4,0.86407892]
[1745594616455,7.615,1819.7,1817.9,16.486]
[1745594616456,3.0,1819.4,1817.9,16.486]
[1745594616620,7.615,1819.4,1818.0,0.05498149]
[1745594616822,6.43684525,1819.5,1818.0,0.05498149]
[1745594617154,6.43684525,1819.5,1818.0,3.47626267]
[1745594617330,14.05184525,1819.5,1818.0,9.91310792]
[1745594617524,4.40518453,1819.4,1818.1,0.99131079]
[1745594617764,1.40518453,1819.4,1818.2,0.05498357]
[1745594618066,0.01209901,1819.3,1818.2,0.05498357]
[1745594618249,2.72113042,1822.6,1819.2,6.43684525]
[1745594618569,7.19134525,1823.1,1821.2,6.43684525]
[1745594618861,0.7545,1823.1,1821.4,3.0]
[1745594619160,2.24694201,1822.7,1821.8,6.43684525]
[1745594619462,7.92,1823.0,1821.8,6.43684525]
[1745594619779,3.15104785,1824.0,1822.1,6.43684525]
[1745594619780,1.1883566,1824.0,1822.1,6.43684525]
[1745594619934,1.1883566,1824.0,1822.9,6.43684525]
[1745594620271,1.1883566,1824.0,1822.8,6.43684525]
[1745594620566,9.1083566,1824.0,1822.4,6.43684525]
[1745594620723,9.1083566,1824.0,1822.5,0.55]
[1745594620922,9.1083566,1824.0,1822.4,14.35684525]
[1745594621168,3.0,1823.8,1822.4,14.35684525]
[1745594621487,5.48499855,1823.2,1822.0,6.43684525]
[1745594621764,3.0,1823.0,1822.0,6.43684525]
[1745594622069,0.7732,1823.2,1822.0,6.43684525]
[1745594622225,0.8184,1823.7,1821.0,0.2]
[1745594622565,7.25524525,1823.7,1822.1,6.43684525]
[1745594622724,5.48535549,1823.1,1821.8,6.43684525]
[1745594623055,3.0,1822.9,1821.9,0.05488005]
[1745594623257,8.442,1823.5,1822.2,6.43684525]
[1745594623466,0.8442,1823.4,1821.9,6.43684525]
[1745594623625,5.48486182,1823.2,1821.9,6.43684525]
[1745594623938,3.8442,1823.4,1821.9,6.43684525]
[1745594624259,3.0,1823.3,1821.9,6.43684525]
[1745594624437,3.0,1822.9,1821.5,8.439]
[1745594624772,5.48559821,1823.0,1821.4,8.439]
[1745594624773,3.0,1822.7,1821.4,8.439]
[1745594624926,8.55959281,1822.8,1821.6,0.05488003]
[1745594625125,0.1113715,1822.6,1821.9,0.55]
[1745594625461,0.8193,1823.4,1822.0,8.439]
[1745594625767,8.439,1823.6,1820.1,0.23958944]
[1745594625768,6.43684525,1822.6,1820.1,0.23958944]
[1745594625967,6.43684525,1821.0,1818.8,0.41044939]
[1745594626137,0.05486105,1820.9,1819.3,15.12684525]
[1745594626480,0.10268436,1820.9,1819.6,6.43684525]
[1745594626711,3.0,1821.4,1819.7,0.05491991]
[1745594626859,6.43684525,1820.9,1819.7,8.941]
[1745594627298,0.05486105,1820.8,1819.7,8.941]
[1745594627464,0.05486105,1820.8,1819.2,0.05491925]
[1745594627798,14.43356686,1820.7,1819.3,0.05494492]
[1745594628004,0.05486105,1820.6,1819.3,0.05494063]
[1745594628295,0.05486105,1820.6,1819.2,0.89959193]
[1745594628296,8.66374206,1820.6,1819.4,0.05494031]
[1745594628457,5.49438347,1820.1,1818.6,8.941]
[1745594628658,8.66888101,1820.2,1818.7,0.0549579]
[1745594628898,9.53576911,1820.2,1818.7,0.95455369]
[1745594629108,0.8668881,1820.2,1818.7,0.95455369]
[1745594629278,8.66888101,1820.4,1818.7,0.95455369]
[1745594629468,8.66888101,1820.4,1818.7,0.95454667]
[1745594629663,8.66888101,1820.4,1818.7,3.95454667]
[1745594630602,8.941,1820.7,1818.8,0.55]
[1745594630769,0.8941,1820.6,1819.0,0.55]
[1745594631089,14.1623591,1820.4,1818.9,0.53576928]
[1745594631401,5.49404638,1820.2,1818.9,0.4808243]
[1745594631608,8.943,1820.1,1818.7,0.89959579]
[1745594631809,14.16358129,1820.0,1818.7,0.89959579]
[1745594632009,4.41635813,1819.9,1818.7,0.89959579]
[1745594632192,4.83302021,1819.9,1818.7,0.95456504]
[1745594632392,1.41635813,1819.9,1818.7,0.95456504]
[1745594632603,5.49528428,1819.8,1818.7,0.89959579]
[1745594632774,1.41635813,1819.9,1818.8,0.05497648]
[1745594632974,0.30548611,1820.8,1819.0,3.0]
[1745594633200,0.30548611,1820.8,1819.3,0.55]
[1745594633399,0.30548611,1820.8,1819.4,0.0549405]
[1745594634651,0.30548611,1820.8,1819.5,0.05493998]
[1745594634995,0.30548611,1820.8,1819.3,0.55]
[1745594635228,0.30548611,1820.8,1819.4,0.05494451]
[1745594635808,8.66888101,1820.9,1819.4,0.05494451]
[1745594636011,17.61388101,1820.9,1819.4,0.05494451]
[1745594636228,23.10571288,1820.9,1819.4,0.05494451]
[1745594636537,17.61388101,1820.9,1819.4,0.05494451]
[1745594636699,3.0,1820.8,1819.4,0.05494451]
[1745594636902,0.3,1820.7,1819.4,0.05494451]
[1745594638948,5.50130105,1817.8,1816.7,0.4101566]
[1745594639251,0.05494451,1817.7,1816.9,4.0]